bitfinex/quotes_SOLUSD_20241220
["timestamp","ask_amount","ask_price","bid_price","bid_amount"]
[1734694012674,42.58421847,181.28,181.2,42.58421847]
[1734694012881,42.58421847,181.3,181.21,0.12549]
[1734694013088,42.58421847,181.28,181.21,0.12549]
[1734694013305,42.58421847,181.3,181.21,0.12549]
[1734694013500,42.58421847,181.28,181.2,42.58421847]
[1734694013806,42.58421847,181.26,181.16,42.58421847]
[1734694014007,42.58421847,181.26,181.17,0.12549]
[1734694014210,42.58421847,181.22,181.14,42.58421847]
[1734694014401,42.58421847,181.24,181.14,42.58421847]
[1734694014596,42.58421847,181.22,181.14,42.58421847]
[1734694015915,42.58421847,181.26,181.16,42.58421847]
[1734694016125,42.58421847,181.35,181.15,20.0]
[1734694016126,42.58421847,181.22,181.15,20.0]
[1734694016418,42.58421847,181.22,181.16,20.0]
[1734694016597,42.58421847,181.24,181.18,20.0]
[1734694017008,26.39544643,181.22,181.16,20.0]
[1734694017313,26.39544643,181.22,181.17,0.12549]
[1734694017515,26.39544643,181.2,181.14,20.0]
[1734694017710,26.39544643,181.18,181.1,33.25]
[1734694017929,26.39544643,181.18,181.09,26.39544643]
[1734694018619,26.39544643,181.26,181.03,6.127]
[1734694018620,26.39544643,181.16,181.07,26.39544643]
[1734694018822,26.39544643,181.18,181.09,26.39544643]
[1734694019049,26.39544643,181.2,181.11,26.39544643]
[1734694019327,26.39544643,181.2,181.03,40.95514627]
[1734694019328,26.39544643,181.25,181.18,0.12549]
[1734694019643,26.39544643,181.21,181.18,0.12549]
[1734694019939,26.39544643,181.23,181.13,26.39544643]
[1734694020144,26.39544643,181.25,181.17,0.12549]
[1734694020319,26.39544643,181.25,181.19,0.12549]
[1734694020803,26.39544643,181.21,181.07,26.39544643]
[1734694021138,26.39544643,181.11,181.0,0.82815451]
[1734694021321,26.39544643,181.11,181.01,26.39544643]
[1734694021640,26.39544643,181.09,180.99,26.39544643]
[1734694021927,26.39544643,181.09,180.91,22.123421]
[1734694021928,26.39544643,181.03,180.94,26.39544643]
[1734694022133,26.39544643,181.05,180.96,26.39544643]
[1734694022338,26.39544643,181.07,180.98,26.39544643]
[1734694022709,26.39544643,181.17,180.91,0.82863087]
[1734694022710,26.39544643,181.05,180.91,0.82863087]
[1734694022906,26.39544643,181.05,180.96,26.39544643]
[1734694023218,42.97399624,181.07,180.97,42.97399624]
[1734694023616,42.97399624,181.07,180.98,0.12549]
[1734694023927,42.97399624,181.03,180.93,42.97399624]
[1734694024130,42.97399624,181.01,180.91,42.97399624]
[1734694024743,42.97399624,181.04,180.94,42.97399624]
[1734694024948,42.97399624,181.08,180.99,42.97399624]
[1734694025248,42.97399624,181.08,181.02,0.12549]
[1734694025842,42.97399624,181.08,181.0,0.12549]
[1734694026043,42.97399624,181.04,180.95,42.97399624]
[1734694026550,30.0,181.06,180.91,0.82885147]
[1734694026721,42.97399624,181.01,180.91,42.97399624]
[1734694027231,42.97399624,181.01,180.92,0.12549]
[1734694027426,42.97399624,181.01,180.91,42.97399624]
[1734694027640,42.97399624,180.99,180.89,42.97399624]
[1734694028040,42.97399624,181.01,180.91,42.97399624]
[1734694028251,42.97399624,181.06,180.96,42.97399624]
[1734694028450,42.97399624,181.08,180.99,0.12549]
[1734694028749,42.97399624,181.14,181.07,0.12549]
[1734694029117,54.84971164,181.16,181.09,0.12549]
[1734694029349,7.99373612,181.22,181.09,0.12549]
[1734694029350,42.97399624,181.1,181.09,0.12549]
[1734694029653,42.97399624,181.1,180.98,42.97399624]
[1734694029829,42.97399624,181.05,180.92,20.0]
[1734694030029,42.97399624,181.09,180.99,20.0]
[1734694030234,42.97399624,181.11,181.0,42.97399624]
[1734694030752,42.97399624,181.11,181.03,20.12549]
[1734694030957,42.97399624,181.13,181.03,0.12549]
[1734694031166,42.97399624,181.15,181.08,0.12549]
[1734694031456,42.97399624,181.13,181.08,0.12549]
[1734694031744,42.97399624,181.13,181.06,20.0]
[1734694031957,42.97399624,181.15,181.07,0.12549]
[1734694032454,42.97399624,181.09,180.97,42.97399624]
[1734694032752,30.0,181.14,180.9,83.33069624]
[1734694032753,42.97399624,181.05,180.95,42.97399624]
[1734694032955,42.97399624,181.07,180.97,42.97399624]
[1734694033349,42.97399624,181.05,180.95,42.97399624]
[1734694033539,42.97399624,181.11,181.01,42.97399624]
[1734694033852,42.97399624,181.09,180.99,42.97399624]
[1734694034158,42.97399624,181.11,181.03,0.12549]
[1734694034753,42.97399624,181.09,181.02,20.0]
[1734694034949,42.97399624,181.11,181.03,0.12549]
[1734694035151,42.97399624,181.09,181.03,0.12549]
[1734694035333,42.97399624,181.09,181.02,20.0]
[1734694035755,42.97399624,181.07,180.97,42.97399624]
[1734694036650,42.97399624,181.07,180.91,37.0610108]
[1734694036651,42.97399624,181.05,180.95,42.97399624]
[1734694036857,42.97399624,181.01,180.91,42.97399624]
[1734694037056,42.97399624,180.99,180.89,46.06439624]
[1734694037224,42.97399624,180.99,180.87,42.97399624]
[1734694037429,42.97399624,181.01,180.91,42.97399624]
[1734694037854,42.97399624,180.99,180.89,42.97399624]
[1734694038456,42.97399624,181.01,180.91,42.97399624]
[1734694038631,42.97399624,181.03,180.93,43.09948624]
[1734694039156,42.97399624,181.01,180.91,42.97399624]
[1734694039532,42.97399624,180.99,180.89,43.80292473]
[1734694039734,42.97399624,181.01,180.91,42.97399624]
[1734694040041,42.97399624,181.01,180.92,0.12549]
[1734694040742,42.97399624,181.01,180.92,0.95438418]
[1734694040938,42.97399624,181.03,180.94,0.12549]
[1734694041450,42.97399624,181.05,180.96,0.12549]
[1734694041753,42.97399624,181.03,180.93,42.97399624]
[1734694041952,42.97399624,181.05,180.95,43.09948624]
[1734694042142,42.97399624,181.05,180.98,0.12549]
[1734694042346,42.97399624,181.09,181.01,0.12549]
[1734694042724,42.97399624,181.17,181.09,0.12549]
[1734694042930,42.97399624,181.17,181.11,0.12549]
[1734694043129,42.97399624,181.21,181.13,0.12549]
[1734694043661,42.97399624,181.21,181.15,0.12549]
[1734694043863,42.97399624,181.19,181.15,0.12549]
[1734694044165,42.97399624,181.17,181.08,42.97399624]
[1734694044651,42.97399624,181.15,181.06,42.97399624]
[1734694044834,7.99373612,181.35,181.09,62.97399624]
[1734694045035,7.99373612,181.35,181.25,42.97399624]
[1734694045250,42.97399624,181.34,181.26,0.12549]
[1734694045557,7.99373612,181.35,181.26,0.12549]
[1734694045558,7.99373612,181.35,181.28,0.12549]
[1734694045759,7.99373612,181.34,181.3,0.12549]
[1734694046455,42.97399624,181.38,181.3,0.12549]
[1734694046661,42.97399624,181.38,181.12,27.06553603]
[1734694046662,72.97399624,181.32,181.18,20.0]
[1734694046861,42.97399624,181.26,181.15,49.08869624]
[1734694047045,42.97399624,181.24,181.15,42.97399624]
[1734694047358,42.97399624,181.22,181.13,42.97399624]
[1734694048255,42.97399624,181.26,181.03,42.97399624]
[1734694048256,42.97399624,181.14,181.03,42.97399624]
[1734694048434,30.0,181.17,181.05,42.97399624]
[1734694048639,42.97399624,181.18,181.08,42.97399624]
[1734694049052,42.97399624,181.2,181.11,0.12549]
[1734694049258,30.0,181.21,181.12,42.97399624]
[1734694049445,42.97399624,181.2,181.1,42.97399624]
[1734694049759,42.97399624,181.18,181.08,42.97399624]
[1734694049962,42.97399624,181.2,181.04,0.82800985]
[1734694050141,42.97399624,181.18,181.08,42.97399624]
[1734694050534,30.0,181.2,181.1,42.97399624]
[1734694050535,42.97399624,181.2,181.1,42.97399624]
[1734694050729,42.97399624,181.2,181.11,0.12549]
[1734694051138,42.97399624,181.2,181.04,34.82800985]
[1734694051139,42.97399624,181.2,181.13,0.12549]
[1734694051642,42.97399624,181.24,181.16,43.09948624]
[1734694051845,42.97399624,181.26,181.18,43.09948624]
[1734694052042,42.97399624,181.24,181.2,0.12549]
[1734694052246,42.97399624,181.22,181.13,42.97399624]
[1734694052462,42.97399624,181.2,181.14,20.0]
[1734694052761,42.97399624,181.24,181.16,0.12549]
[1734694053460,42.97399624,181.26,181.18,0.12549]
[1734694053947,42.97399624,181.26,181.18,20.12549]
[1734694054136,42.97399624,181.24,181.15,42.97399624]
[1734694054339,42.97399624,181.22,181.13,42.97399624]
[1734694054565,42.97399624,181.18,181.09,43.80179401]
[1734694054774,42.97399624,181.2,181.11,42.97399624]
[1734694055171,42.97399624,181.2,181.09,42.97399624]
[1734694055571,42.97399624,181.18,181.09,42.97399624]
[1734694055880,42.97399624,181.18,181.07,42.97399624]
[1734694056088,42.97399624,181.14,181.05,42.97399624]
[1734694056266,42.97399624,181.08,180.95,37.187]
[1734694056461,42.97399624,181.06,180.97,42.97399624]
[1734694056888,42.97399624,181.08,181.0,0.12549]
[1734694057091,42.97399624,181.12,181.03,42.97399624]
[1734694057392,42.97399624,181.12,181.01,42.97399624]
[1734694057597,42.97399624,181.12,181.03,42.97399624]
[1734694057781,42.97399624,181.12,181.04,0.12549]
[1734694058098,72.97399624,181.17,181.04,0.82829277]
[1734694058099,42.97399624,181.13,181.04,0.82829277]
[1734694058301,42.97399624,181.15,181.05,42.97399624]
[1734694058488,42.97399624,181.15,181.06,0.12549]
[1734694058667,42.97399624,181.17,181.1,0.12549]
[1734694058867,42.97399624,181.15,181.1,0.12549]
[1734694059192,42.97399624,181.15,181.05,42.97399624]
[1734694059500,42.97399624,181.13,181.03,42.97399624]
[1734694059666,30.0,181.2,181.04,0.82832428]
[1734694059866,13.7946,181.23,181.0,0.82825645]
[1734694059867,42.97399624,181.1,181.0,0.82825645]
[1734694060106,42.97399624,181.1,180.99,42.97399624]
[1734694060107,42.97399624,181.06,180.97,42.97399624]
[1734694060722,42.97399624,181.04,180.96,0.82843901]
[1734694060916,42.97399624,181.02,180.91,43.80269542]
[1734694061202,42.97399624,181.0,180.91,0.82869918]
[1734694061613,42.97399624,181.0,180.91,43.80269542]
[1734694061784,42.97399624,181.0,180.91,0.82869918]
[1734694061996,42.97399624,181.0,180.9,0.82894731]
[1734694062195,42.97399624,181.0,180.91,42.97399624]
[1734694062403,42.97399624,181.02,180.93,42.97399624]
[1734694062717,42.97399624,181.02,180.95,0.12549]
[1734694062889,86.77999624,181.08,180.88,42.97399624]
[1734694062890,42.97399624,180.98,180.88,42.97399624]
[1734694063088,42.97399624,180.98,180.89,0.82898577]
[1734694063411,42.97399624,181.0,180.89,0.82898577]
[1734694063716,42.97399624,180.98,180.89,0.82898577]
[1734694064299,42.97399624,180.98,180.9,0.12549]
[1734694064612,42.97399624,180.98,180.92,0.12549]
[1734694065108,42.97399624,181.0,180.9,43.09948624]
[1734694065310,42.97399624,180.98,180.89,0.8288117]
[1734694066210,30.0,181.04,180.86,49.08869624]
[1734694066211,42.97399624,180.96,180.86,49.08869624]
[1734694066417,42.97399624,180.96,180.88,0.82890765]
[1734694066591,42.97399624,180.96,180.89,0.12549]
[1734694066918,42.97399624,181.0,180.91,0.12549]
[1734694067100,72.97399624,181.08,180.95,0.12549]
[1734694067101,42.97399624,181.04,180.95,0.12549]
[1734694067296,30.0,181.12,180.97,0.12549]
[1734694067601,42.97399624,181.08,181.03,20.0]
[1734694067806,42.97399624,181.12,181.04,0.12549]
[1734694068018,42.97399624,181.1,181.04,0.12549]
[1734694068182,42.97399624,181.12,181.04,0.12549]
[1734694068389,42.97399624,181.12,181.06,0.12549]
[1734694068720,42.97399624,181.14,181.06,0.12549]
[1734694068899,42.97399624,181.16,181.09,20.0]
[1734694069221,42.97399624,181.16,181.09,0.82797705]
[1734694069403,42.97399624,181.16,181.1,0.12549]
[1734694069723,42.97399624,181.18,181.12,0.12549]
[1734694070426,42.97399624,181.16,181.09,20.82787434]
[1734694070721,42.97399624,181.16,181.12,23.776884]
[1734694070919,42.97399624,181.18,181.13,0.12549]
[1734694071293,42.97399624,181.16,181.13,0.12549]
[1734694071816,30.0,181.29,181.13,0.12549]
[1734694072002,42.97399624,181.2,181.13,0.12549]
[1734694072395,42.97399624,181.2,181.15,0.12549]
[1734694072714,42.97399624,181.26,181.17,20.12549]
[1734694073034,42.97399624,181.26,181.19,0.12549]
[1734694073318,42.97399624,181.24,181.19,0.12549]
[1734694073520,42.97399624,181.24,181.18,0.82753607]
[1734694073521,42.97399624,181.22,181.16,20.82755768]
[1734694073910,42.97399624,181.22,181.17,23.902374]
[1734694074419,42.97399624,181.24,181.17,23.902374]
[1734694075026,42.97399624,181.2,181.17,23.776884]
[1734694075184,42.97399624,181.18,181.17,23.776884]
[1734694075687,42.97399624,181.18,181.06,0.82804669]
[1734694075884,42.97399624,181.13,181.06,0.82804669]
[1734694076089,42.97399624,181.11,181.03,42.97399624]
[1734694076285,42.97399624,181.07,181.0,0.82831031]
[1734694076511,42.97399624,181.17,181.01,42.97399624]
[1734694076512,42.97399624,181.11,181.01,42.97399624]
[1734694076821,42.97399624,181.11,181.02,0.82825929]
[1734694077021,42.97399624,181.15,181.05,42.97399624]
[1734694077227,42.97399624,181.11,181.02,0.82825929]
[1734694077610,42.97399624,181.11,181.03,0.12549]
[1734694078410,42.97399624,181.13,181.05,23.902374]
[1734694078602,42.97399624,181.17,181.07,43.09948624]
[1734694078805,42.97399624,181.17,181.09,43.09948624]
[1734694079104,42.97399624,181.19,181.11,43.09948624]
[1734694079303,42.97399624,181.21,181.13,0.12549]
[1734694079497,42.97399624,181.21,181.13,23.902374]
[1734694080419,42.97399624,181.23,181.15,0.12549]
[1734694080627,42.97399624,181.23,181.17,0.12549]
[1734694080835,42.97399624,181.23,181.17,23.902374]
[1734694081331,42.97399624,181.19,181.17,23.776884]
[1734694081517,42.97399624,181.19,181.07,42.97399624]
[1734694081698,42.97399624,181.19,181.11,42.97399624]
[1734694082021,42.97399624,181.15,181.05,42.97399624]
[1734694082224,42.97399624,181.11,181.03,0.82811557]
[1734694082427,42.97399624,181.07,180.98,0.82828347]
[1734694082733,42.97399624,181.01,180.95,0.82848879]
[1734694083026,0.20507939,181.18,180.95,0.82848879]
[1734694083027,30.0,181.04,180.95,42.97399624]
[1734694083191,42.97399624,181.05,180.95,42.97399624]
[1734694083393,42.97399624,181.01,180.92,43.80257417]
[1734694083625,42.97399624,181.03,180.92,43.80257417]
[1734694083804,42.97399624,181.05,180.96,42.97399624]
[1734694084008,42.97399624,181.09,180.98,42.97399624]
[1734694084330,42.97399624,181.05,180.94,42.97399624]
[1734694084542,42.97399624,181.05,180.96,42.97399624]
[1734694084740,42.97399624,181.07,180.97,0.82860313]
[1734694084910,42.97399624,181.05,180.96,42.97399624]
[1734694085105,42.97399624,181.05,180.94,42.97399624]
[1734694085306,42.97399624,181.03,180.95,0.82865521]
[1734694085627,42.97399624,181.01,180.92,43.80265866]
[1734694085932,42.97399624,181.03,180.94,42.97399624]
[1734694086144,42.97399624,181.01,180.91,0.82872126]
[1734694086636,42.97399624,181.03,180.95,0.12549]
[1734694086807,42.97399624,181.03,180.95,0.95417636]
[1734694087208,42.97399624,181.07,180.97,0.12549]
[1734694087423,42.97399624,181.07,180.99,0.12549]
[1734694088117,42.97399624,181.07,180.99,23.902374]
[1734694088540,42.97399624,181.07,180.99,24.73081376]
[1734694088833,42.97399624,181.11,181.03,0.12549]
[1734694089043,42.97399624,181.07,180.99,24.60532376]
[1734694089337,42.97399624,181.11,181.01,42.97399624]
[1734694089534,42.97399624,181.09,181.02,0.12549]
[1734694089845,42.97399624,181.03,181.02,23.776884]
[1734694090008,42.97399624,181.03,180.93,43.80242553]
[1734694090562,42.97399624,181.03,180.96,0.12549]
[1734694091217,42.97399624,181.05,180.96,0.12549]
[1734694091410,42.97399624,181.05,180.96,23.902374]
[1734694091908,42.97399624,181.01,180.96,23.776884]
[1734694092114,42.97399624,181.01,180.92,0.82867903]
[1734694092346,42.97399624,180.99,180.92,0.82867903]
[1734694092843,42.97399624,180.99,180.9,0.82884034]
[1734694093417,42.97399624,181.03,180.92,42.97399624]
[1734694093651,42.97399624,181.03,180.94,42.97399624]
[1734694093827,42.97399624,181.03,180.93,0.82867226]
[1734694094349,42.97399624,181.03,180.94,43.09948624]
[1734694094846,42.97399624,181.01,180.95,23.776884]
[1734694095147,42.97399624,181.01,180.96,0.12549]
[1734694095627,42.97399624,180.99,180.94,23.776884]
[1734694095816,42.97399624,181.03,180.95,0.12549]
[1734694096019,42.97399624,181.05,180.97,0.12549]
[1734694096248,72.97399624,181.09,180.99,0.12549]
[1734694096547,42.97399624,181.11,181.03,0.12549]
[1734694096751,42.97399624,181.11,181.03,0.95374344]
[1734694096951,42.97399624,181.09,181.03,0.12549]
[1734694097121,42.97399624,181.09,181.01,0.82839041]
[1734694097323,42.97399624,181.11,181.02,43.09948624]
[1734694097527,42.97399624,181.09,181.02,0.12549]
[1734694098516,42.97399624,181.07,181.01,23.776884]
[1734694098713,42.97399624,181.07,180.98,42.97399624]
[1734694098917,42.97399624,181.07,180.99,0.82848635]
[1734694099450,42.97399624,181.09,181.0,43.09948624]
[1734694099823,42.97399624,181.09,181.0,43.9278871]
[1734694100023,42.97399624,181.09,181.0,43.09948624]
[1734694100440,42.97399624,181.11,181.01,24.60529882]
[1734694100722,42.97399624,181.09,181.01,23.776884]
[1734694101029,42.97399624,181.13,181.06,0.12549]
[1734694101622,42.97399624,181.19,181.12,0.12549]
[1734694101824,42.97399624,181.19,181.13,23.776884]
[1734694102030,42.97399624,181.15,181.13,23.776884]
[1734694102256,42.97399624,181.15,181.06,0.82807505]
[1734694102545,42.97399624,181.08,181.06,23.776884]
[1734694103059,30.0,181.07,180.94,42.97399624]
[1734694103222,42.97399624,181.05,180.96,42.97399624]
[1734694103554,42.97399624,181.05,180.95,0.82867886]
[1734694103759,42.97399624,181.03,180.95,0.82867886]
[1734694103928,42.97399624,181.05,180.95,0.82867886]
[1734694104821,72.97399624,181.09,180.99,20.0]
[1734694105015,42.97399624,181.09,181.0,43.8024682]
[1734694105219,42.97399624,181.09,181.01,0.12549]
[1734694106530,42.97399624,181.07,180.99,20.0]
[1734694106857,42.97399624,181.07,181.01,20.0]
[1734694107071,42.97399624,181.09,181.02,0.12549]
[1734694107569,42.97399624,181.04,180.96,56.78909624]
[1734694107735,42.97399624,181.04,180.94,42.97399624]
[1734694107935,42.97399624,181.04,180.93,0.82832571]
[1734694107936,42.97399624,181.08,181.0,42.97399624]
[1734694108136,42.97399624,181.1,181.02,0.12549]
[1734694108362,42.97399624,181.08,181.02,0.12549]
[1734694108949,42.97399624,181.08,181.0,56.78599624]
[1734694109357,42.97399624,181.08,181.01,0.12549]
[1734694109538,42.97399624,181.08,181.01,20.12549]
[1734694109739,30.0,180.99,180.83,7.1724372]
[1734694109960,42.97399624,180.97,180.86,42.97399624]
[1734694110163,42.97399624,180.97,180.88,42.97399624]
[1734694110346,42.97399624,180.97,180.89,0.82897198]
[1734694110825,42.97399624,180.95,180.86,43.80296479]
[1734694110971,42.97399624,180.95,180.86,0.82896855]
[1734694111476,42.97399624,180.93,180.86,0.82896855]
[1734694112185,42.97399624,180.96,180.87,42.97399624]
[1734694112346,42.97399624,180.94,180.86,0.82896855]
[1734694113177,42.97399624,180.98,180.9,0.12549]
[1734694113480,42.97399624,180.96,180.89,0.82898368]
[1734694113773,42.97399624,180.96,180.89,0.8290668]
[1734694114341,42.97399624,180.96,180.87,43.80298332]
[1734694114551,42.97399624,180.94,180.88,0.12549]
[1734694115504,42.97399624,180.92,180.88,0.12549]
[1734694115798,42.97399624,180.94,180.88,0.12549]
[1734694117069,42.97399624,180.92,180.88,0.12549]
[1734694117403,42.97399624,180.92,180.87,0.12549]
[1734694117688,42.97399624,180.94,180.87,0.12549]
[1734694117897,42.97399624,180.96,180.89,0.12549]
[1734694118457,42.97399624,180.98,180.91,0.12549]
[1734694118663,42.97399624,180.96,180.91,0.12549]
[1734694119063,42.97399624,180.96,180.87,43.80298801]
[1734694119895,42.97399624,180.98,180.9,0.12549]
[1734694120069,42.97399624,181.0,180.92,0.12549]
[1734694120400,42.97399624,180.98,180.92,0.9542682]
[1734694120766,42.97399624,180.96,180.91,20.0]
[1734694121164,42.97399624,180.96,180.92,0.12549]
[1734694121701,42.97399624,180.94,180.88,14.65010984]
[1734694121902,72.97399624,180.99,180.84,0.8290011]
[1734694121903,42.97399624,180.9,180.84,0.8290011]
[1734694122093,42.97399624,180.94,180.86,42.97399624]
[1734694122297,30.0,181.14,180.91,33.24]
[1734694122497,42.97399624,181.01,180.92,0.82834049]
[1734694122683,30.0,181.01,180.87,14.65062758]
[1734694123011,30.0,181.01,180.87,0.82862758]
[1734694123307,30.0,180.98,180.87,0.82862758]
[1734694123476,30.0,180.98,180.88,0.12549]
[1734694123687,42.97399624,180.89,180.84,0.12549]
[1734694124191,42.97399624,180.89,180.83,15.32775489]
[1734694124192,42.97399624,180.85,180.83,0.6743372]
[1734694124396,42.97399624,180.85,180.66,0.82941744]
[1734694124397,30.0,180.83,180.66,0.82941744]
[1734694124697,42.97399624,180.67,180.64,0.6743372]
[1734694124902,42.97399624,180.65,180.64,0.6743372]
[1734694125471,42.97399624,180.67,180.64,0.6743372]
[1734694125672,6.083,180.74,180.64,0.6743372]
[1734694125673,42.97399624,180.71,180.64,0.6743372]
[1734694125890,42.97399624,180.69,180.65,0.82999645]
[1734694126071,42.97399624,180.71,180.65,0.82999645]
[1734694126274,42.97399624,180.69,180.65,0.82999645]
[1734694126576,6.083,180.8,180.64,0.6743372]
[1734694126577,42.97399624,180.67,180.64,0.6743372]
[1734694127192,42.97399624,180.71,180.64,0.6743372]
[1734694127400,42.97399624,180.71,180.65,0.83002442]
[1734694127606,42.97399624,180.71,180.64,0.6743372]
[1734694127904,6.083,180.8,180.65,0.12549]
[1734694127905,42.97399624,180.69,180.65,0.12549]
[1734694128207,42.97399624,180.71,180.65,0.12549]
[1734694128703,42.97399624,180.73,180.67,20.0]
[1734694128911,42.97399624,180.75,180.69,0.12549]
[1734694130506,42.97399624,180.71,180.64,0.6743372]
[1734694130730,42.97399624,180.67,180.64,0.6743372]
[1734694130939,72.97399624,180.72,180.64,0.6743372]
[1734694131127,115.94799248,180.65,180.46,34.6743372]
[1734694131438,42.97399624,180.52,180.46,7.0675372]
[1734694131603,42.97399624,180.54,180.46,0.6743372]
[1734694131805,42.97399624,180.52,180.46,0.6743372]
[1734694132004,42.97399624,180.54,180.46,1.50523925]
[1734694132219,42.97399624,180.56,180.46,44.44368726]
[1734694133132,42.97399624,180.6,180.5,42.97399624]
[1734694133435,42.97399624,180.6,180.54,0.12549]
[1734694133734,42.97399624,180.6,180.53,20.0]
[1734694133735,42.97399624,180.6,180.56,0.12549]
[1734694134229,42.97399624,180.62,180.56,0.12549]
[1734694135132,42.97399624,180.58,180.53,20.0]
[1734694135439,42.97399624,180.54,180.46,43.61278521]
[1734694135732,42.97399624,180.54,180.46,0.63878897]
[1734694135943,42.97399624,180.56,180.46,43.61278521]
[1734694136106,42.97399624,180.56,180.47,0.8307818]
[1734694136307,42.97399624,180.56,180.48,42.97399624]
[1734694136511,42.97399624,180.58,180.51,0.12549]
[1734694137040,42.97399624,180.58,180.5,0.12549]
[1734694137735,42.97399624,180.58,180.49,0.83074407]
[1734694138532,42.97399624,180.56,180.47,20.0]
[1734694138707,42.97399624,180.51,180.46,0.63878897]
[1734694138902,42.97399624,180.53,180.46,0.63878897]
[1734694139612,42.97399624,180.51,180.46,0.63878897]
[1734694140300,49.70441118,180.63,180.46,0.63878897]
[1734694140301,30.0,180.64,180.46,1.46986771]
[1734694140503,42.97399624,180.64,180.53,42.97399624]
[1734694140702,42.97399624,180.62,180.55,0.12549]
[1734694140909,6.1461,180.66,180.49,42.97399624]
[1734694140910,42.97399624,180.6,180.49,42.97399624]
[1734694141213,42.97399624,180.58,180.5,0.83067788]
[1734694141517,42.97399624,180.62,180.51,43.09948624]
[1734694141720,27.62132082,180.8,180.51,43.09948624]
[1734694141721,42.97399624,180.69,180.6,0.12549]
[1734694141925,42.97399624,180.69,180.62,0.12549]
[1734694142129,42.97399624,180.73,180.63,42.97399624]
[1734694142710,42.97399624,180.7,180.62,0.8301274]
[1734694142930,42.97399624,180.68,180.59,42.97399624]
[1734694143234,42.97399624,180.64,180.55,42.97399624]
[1734694143439,30.0,180.67,180.57,42.97399624]
[1734694143643,42.97399624,180.69,180.61,42.97399624]
[1734694143952,42.97399624,180.65,180.57,42.97399624]
[1734694144115,42.97399624,180.67,180.58,0.8304483]
[1734694144309,42.97399624,180.67,180.56,0.83026914]
[1734694144518,42.97399624,180.63,180.54,42.97399624]
[1734694144724,42.97399624,180.63,180.52,0.83053546]
[1734694144725,9.3396,180.62,180.52,0.83053546]
[1734694144910,30.0,180.44,180.28,43.64833344]
[1734694145111,277.00635901,180.6,180.28,43.64833344]
[1734694145112,42.97399624,180.48,180.36,42.97399624]
[1734694145316,0.83053546,180.47,180.37,0.83128092]
[1734694145541,42.97399624,180.5,180.38,42.97399624]
[1734694145745,42.97399624,180.5,180.39,0.83111453]
[1734694145923,42.97399624,180.48,180.39,0.83111453]
[1734694146129,42.97399624,180.44,180.34,42.97399624]
[1734694146348,42.97399624,180.44,180.35,0.83133704]
[1734694146550,42.97399624,180.46,180.35,0.83133704]
[1734694146724,42.97399624,180.46,180.35,14.69313704]
[1734694147120,42.97399624,180.46,180.36,42.97399624]
[1734694147447,42.97399624,180.48,180.37,0.83120145]
[1734694147748,42.97399624,180.48,180.38,0.12549]
[1734694148053,42.97399624,180.5,180.39,14.6899713]
[1734694148222,0.83053546,180.49,180.39,14.6899713]
[1734694148425,42.97399624,180.51,180.41,0.12549]
[1734694148751,42.97399624,180.49,180.43,0.12549]
[1734694149054,0.83053546,180.53,180.44,42.97399624]
[1734694149345,42.97399624,180.57,180.49,0.12549]
[1734694149544,43.8045317,180.61,180.51,0.12549]
[1734694149921,43.8045317,180.61,180.5,66.75088024]
[1734694149922,42.97399624,180.53,180.44,42.97399624]
[1734694150140,42.97399624,180.47,180.39,13.8588]
[1734694150445,42.97399624,180.43,180.35,13.8617]
[1734694150752,42.97399624,180.39,180.3,43.80542351]
[1734694150931,0.83053546,180.38,180.3,56.83959624]
[1734694151131,42.97399624,180.39,180.3,56.83959624]
[1734694151441,42.97399624,180.35,180.28,0.6743372]
[1734694151816,42.97399624,180.31,180.28,0.6743372]
[1734694152015,115.94799248,180.29,180.28,0.6743372]
[1734694152243,42.97399624,180.29,180.28,0.6743372]
[1734694152440,73.8045317,180.29,180.28,0.6743372]
[1734694153035,116.77852794,180.29,180.28,0.6743372]
[1734694153362,30.0,180.18,180.0,3.1669]
[1734694153653,30.0,180.28,180.16,0.12549]
[1734694153874,30.0,180.34,180.2,0.12549]
[1734694154153,30.83053546,180.33,180.2,0.12549]
[1734694154338,0.83053546,180.33,180.12,0.12549]
[1734694154652,30.0,180.32,180.14,23.902374]
[1734694154860,30.0,180.27,180.14,23.776884]
[1734694155051,42.97399624,180.25,180.16,23.776884]
[1734694155251,42.97399624,180.23,180.16,23.776884]
[1734694155440,42.97399624,180.21,180.12,13.8796]
[1734694155633,42.97399624,180.15,180.1,0.6743372]
[1734694155930,42.97399624,180.13,180.1,0.6743372]
[1734694156145,43.8045317,180.17,180.1,0.6743372]
[1734694157030,30.0,180.16,180.1,0.6743372]
[1734694157227,0.83053546,180.15,180.1,0.6743372]
[1734694157558,3.1346,180.29,180.1,0.6743372]
[1734694157559,72.97399624,180.2,180.1,0.6743372]